[Event "11th Arad Open 2018"]
[Site "Arad"]
[Date "2018.08.09"]
[Round "6"]
[White "Abramovic, Bosko"]
[Black "Gilea, Lucian"]
[Result "1/2-1/2"]
[ECO "A45"]
[WhiteElo "2400"]
[BlackElo "2279"]
[Annotator "NA"]
[PlyCount "101"]
[EventDate "2018.08.05"]
[EventType "swiss"]
[EventCountry "ROU"]
[SourceTitle "playchess.com"]
[Source "ChessBase"]
[SourceQuality "1"]
[TimeControl "40/5400+30:1800+30"]

1. d4 {[%emt 0:00:00]} Nf6 {[%emt 0:00:00]} 2. g3 {[%emt 0:00:52]} c5 {[%emt 0:00:22]} 3. d5 {[%emt 0:00:06]} d6 {[%emt 0:00:23]} 4. Bg2 {[%emt 0:00:16]} g6 {[%emt 0:01:14]} 5. Nc3 {[%emt 0:01:36]} Bg7 {[%emt 0:00:10]} 6. e4 {[%emt 0:00:06]} O-O {[%emt 0:01:27]} 7. Nge2 {[%emt 0:00:08]} a6 {[%emt 0:01:29]} 8. a4 {[%emt 0:00:17]} e6 {[%emt 0:00:05]} 9. dxe6 {[%emt 0:00:21]} fxe6 {[%emt 0:00:29]} 10. O-O {[%emt 0:00:29]} Nc6 {[%emt 0:00:10]} 11. h3 {[%emt 0:00:34]} Qe7 {[%emt 0:04:41]} 12. f4 {[%emt 0:03:27]} Bd7 {[%emt 0:04:23]} 13. g4 {[%emt 0:00:29]} Rad8 {[%emt 0:00:14]} 14. Ng3 {[%emt 0:00:12]} Ne8 {[%emt 0:04:51]} 15. g5 {[%emt 0:04:13]} Nc7 {[%emt 0:01:21]} 16. h4 {[%emt 0:00:28]} h5 {[%emt 0:01:02]} 17. Nce2 {[%emt 0:01:56]} d5 {[%emt 0:01:21]} 18. e5 {[%emt 0:03:48]} b5 {[%emt 0:02:26]} 19. c3 {[%emt 0:02:45]} Be8 {[%emt 0:18:08]} 20. Bd2 {[%emt 0:00:53]} Rb8 {[%emt 0:09:17]} 21. axb5 {[%emt 0:01:02]} axb5 {[%emt 0:00:10]} 22. Qc2 {[%emt 0:01:37]} Bf7 {[%emt 0:03:58]} 23. Be3 {[%emt 0:03:22]} Rfc8 {[%emt 0:01:13]} 24. Bf2 {[%emt 0:00:44]} Bf8 {[%emt 0:00:42]} 25. Nc1 {[%emt 0:03:38]} c4 {[%emt 0:04:58]} 26. b4 {[%emt 0:06:04]} cxb3 {[%emt 0:11:42]} 27. Nxb3 {[%emt 0:00:06]} Qd8 {[%emt 0:00:49]} 28. Rfd1 {[%emt 0:02:54]} Ra8 {[%emt 0:06:00]} 29. Rxa8 {[%emt 0:06:33]} Rxa8 {[%emt 0:00:57]} 30. Ne4 {[%emt 0:00:10]} Ne8 {[%emt 0:02:03]} 31. Nf6+ {[%emt 0:06:41]} Nxf6 {[%emt 0:00:02]} 32. gxf6 {[%emt 0:00:13]} Bh6 {[%emt 0:00:30]} 33. Nc5 {[%emt 0:03:23]} Kh7 {[%emt 0:03:59]} 34. Nd3 {[%emt 0:02:43]} Ra4 {[%emt 0:00:29]} 35. Rb1 {[%emt 0:00:29]} Qa5 {[%emt 0:02:11]} 36. Bf1 {[%emt 0:20:59]} Bxf4 {[%emt 0:03:30]} 37. Nxf4 {[%emt 0:00:32]} Rxf4 {[%emt 0:00:02]} 38. Rxb5 {[%emt 0:00:13]} Rg4+ {[%emt 0:00:11]} 39. Kh1 {[%emt 0:00:52]} Qc7 {[%emt 0:00:11]} 40. Bh3 {[%emt 0:00:00]} Nxe5 {[%emt 0:00:00]} 41. Bxg4 {[%emt 0:27:45]} Nxg4 {[%emt 0:19:49]} 42. Bg1 {[%emt 0:00:08]} Qf4 {[%emt 0:02:36]} 43. Kg2 {[%emt 0:06:52]} e5 {[%emt 0:01:46]} 44. Rb7 {[%emt 0:00:35]} Qxf6 {[%emt 0:00:09]} 45. Qe2 {[%emt 0:00:10]} Kg7 {[%emt 0:12:45]} 46. Qf3 {[%emt 0:03:26]} Qe6 {[%emt 0:00:31]} 47. Be3 {[%emt 0:05:59]} Qf5 {[%emt 0:01:18]} 48. Bg5 {[%emt 0:02:51]} Nf6 {[%emt 0:01:28]} 49. Re7 {[%emt 0:02:12]} Qg4+ {[%emt 0:01:49]} 50. Qxg4 {[%emt 0:01:13]} Nxg4 {[%emt 0:00:02]} 51. Rb7 {[%emt 0:00:20]} 1/2-1/2

[Event "11th Arad Open 2018"]
[Site "Arad"]
[Date "2018.08.09"]
[Round "6"]
[White "Stoleriu, George"]
[Black "Carasca, Bogdan-Petru"]
[Result "1-0"]
[ECO "B23"]
[WhiteElo "2392"]
[BlackElo "1993"]
[Annotator "NA"]
[PlyCount "119"]
[EventDate "2018.08.05"]
[EventType "swiss"]
[EventCountry "ROU"]
[SourceTitle "playchess.com"]
[Source "ChessBase"]
[SourceQuality "1"]
[TimeControl "40/5400+30:1800+30"]

1. e4 {[%emt 0:00:00]} c5 {[%emt 0:00:00]} 2. Nc3 {[%emt 0:00:05]} e6 {[%emt 0:00:31]} 3. Nf3 {[%emt 0:00:04]} d6 {[%emt 0:01:48]} 4. d4 {[%emt 0:02:16]} cxd4 {[%emt 0:00:16]} 5. Nxd4 {[%emt 0:00:04]} a6 {[%emt 0:00:43]} 6. f4 {[%emt 0:04:18]} Nf6 {[%emt 0:01:05]} 7. Qf3 {[%emt 0:02:38]} Qb6 {[%emt 0:03:25]} 8. Nb3 {[%emt 0:02:37]} Qc7 {[%emt 0:00:58]} 9. Bd3 {[%emt 0:01:52]} Be7 {[%emt 0:00:57]} 10. Be3 {[%emt 0:01:55]} Nbd7 {[%emt 0:03:45]} 11. O-O {[%emt 0:11:03]} O-O {[%emt 0:01:14]} 12. a4 {[%emt 0:04:47]} b6 {[%emt 0:02:48]} 13. Rae1 {[%emt 0:12:23]} Bb7 {[%emt 0:03:02]} 14. Qh3 {[%emt 0:01:35]} e5 {[%emt 0:07:07]} 15. fxe5 {[%emt 0:07:06]} Nxe5 {[%emt 0:00:29]} 16. Bd4 {[%emt 0:03:30]} Rfe8 {[%emt 0:08:53]} 17. Nd5 {[%emt 0:05:53]} Bxd5 {[%emt 0:07:46]} 18. exd5 {[%emt 0:00:33]} Nxd3 {[%emt 0:02:51]} 19. Qxd3 {[%emt 0:00:09]} Nd7 {[%emt 0:12:31]} 20. Bxg7 {[%emt 0:11:40]} Kxg7 {[%emt 0:05:53]} 21. Rxf7+ {[%emt 0:00:11]} Kxf7 {[%emt 0:00:11]} 22. Qxh7+ {[%emt 0:00:05]} Kf8 {[%emt 0:00:21]} 23. Rf1+ {[%emt 0:00:29]} Nf6 {[%emt 0:00:50]} 24. Rxf6+ {[%emt 0:00:26]} Bxf6 {[%emt 0:00:05]} 25. Qxc7 {[%emt 0:00:05]} Re1+ {[%emt 0:02:14]} 26. Kf2 {[%emt 0:00:08]} Rae8 {[%emt 0:00:06]} 27. Qxd6+ {[%emt 0:00:22]} Kg7 {[%emt 0:00:16]} 28. Qg3+ {[%emt 0:02:37]} Kh8 {[%emt 0:01:59]} 29. Qh3+ {[%emt 0:00:33]} Kg8 {[%emt 0:00:15]} 30. Qg4+ {[%emt 0:01:08]} Kf8 {[%emt 0:00:54]} 31. Qb4+ {[%emt 0:00:26]} R1e7 {[%emt 0:00:28]} 32. Nd2 {[%emt 0:05:02]} a5 {[%emt 0:00:53]} 33. Qc4 {[%emt 0:02:17]} Bg5 {[%emt 0:01:29]} 34. Nf3 {[%emt 0:02:11]} Be3+ {[%emt 0:00:18]} 35. Kf1 {[%emt 0:00:04]} Bc5 {[%emt 0:00:20]} 36. Qf4+ {[%emt 0:01:33]} Rf7 {[%emt 0:00:13]} 37. Qh6+ {[%emt 0:00:12]} Ke7 {[%emt 0:00:27]} 38. Qe6+ {[%emt 0:06:01]} Kf8 {[%emt 0:00:09]} 39. Qg6 {[%emt 0:00:16]} Rfe7 {[%emt 0:00:38]} 40. Qd3 {[%emt 0:00:00]} Re3 {[%emt 0:00:00]} 41. Qd2 {[%emt 0:23:06]} R8e4 {[%emt 0:16:54]} 42. c3 {[%emt 0:08:00]} Ke7 {[%emt 0:02:54]} 43. Nd4 {[%emt 0:01:45]} Rf4+ {[%emt 0:01:23]} 44. Kg1 {[%emt 0:00:05]} Ree4 {[%emt 0:01:26]} 45. g3 {[%emt 0:01:19]} Rf5 {[%emt 0:00:38]} 46. Qd3 {[%emt 0:03:56]} Rfe5 {[%emt 0:00:58]} 47. Kg2 {[%emt 0:00:44]} Kd7 {[%emt 0:00:40]} 48. Qb5+ {[%emt 0:00:51]} Kc8 {[%emt 0:00:33]} 49. Qa6+ {[%emt 0:00:42]} Kd7 {[%emt 0:00:14]} 50. Qb5+ {[%emt 0:02:25]} Kd6 {[%emt 0:00:25]} 51. Qc6+ {[%emt 0:00:27]} Ke7 {[%emt 0:00:06]} 52. Ne6 {[%emt 0:00:59]} Re2+ {[%emt 0:01:18]} 53. Kh3 {[%emt 0:00:03]} Rh5+ {[%emt 0:00:58]} 54. Kg4 {[%emt 0:00:02]} Rhxh2 {[%emt 0:01:21]} 55. Qc7+ {[%emt 0:00:06]} Ke8 {[%emt 0:00:19]} 56. Qd8+ {[%emt 0:00:05]} Kf7 {[%emt 0:00:06]} 57. Ng5+ {[%emt 0:02:00]} Kg7 {[%emt 0:00:29]} 58. d6 {[%emt 0:01:03]} Ref2 {[%emt 0:01:01]} 59. Ne6+ {[%emt 0:00:47]} Kf7 {[%emt 0:00:08]} 60. Qe7+ {[%emt 0:00:05]} 1-0

[Event "11th Arad Open 2018"]
[Site "Arad"]
[Date "2018.08.09"]
[Round "6"]
[White "Bogdan, Dan"]
[Black "Ciorgovean, Iustin"]
[Result "1-0"]
[ECO "E63"]
[WhiteElo "2382"]
[BlackElo "2245"]
[Annotator "NA"]
[PlyCount "51"]
[EventDate "2018.08.05"]
[EventType "swiss"]
[EventCountry "ROU"]
[SourceTitle "playchess.com"]
[Source "ChessBase"]
[SourceQuality "1"]
[TimeControl "40/5400+30:1800+30"]

1. c4 {[%emt 0:01:18]} Nf6 {[%emt 0:01:08]} 2. Nf3 {[%emt 0:04:42]} g6 {[%emt 0:01:18]} 3. g3 {[%emt 0:00:52]} Bg7 {[%emt 0:00:18]} 4. Bg2 {[%emt 0:00:21]} O-O {[%emt 0:00:10]} 5. O-O {[%emt 0:00:11]} d6 {[%emt 0:00:27]} 6. d4 {[%emt 0:00:42]} Nc6 {[%emt 0:05:17]} 7. Nc3 {[%emt 0:04:24]} a6 {[%emt 0:00:52]} 8. h3 {[%emt 0:06:29]} Bf5 {[%emt 0:06:54]} 9. Kh2 {[%emt 0:04:19]} Ne4 {[%emt 0:14:29]} 10. Nd5 {[%emt 0:01:35]} Bd7 {[%emt 0:06:22]} 11. Be3 {[%emt 0:06:55]} f5 {[%emt 0:02:06]} 12. Rc1 {[%emt 0:03:43]} Kh8 {[%emt 0:07:49]} 13. Nc3 {[%emt 0:03:29]} Nf6 {[%emt 0:06:28]} 14. d5 {[%emt 0:04:04]} Na5 {[%emt 0:01:58]} 15. c5 {[%emt 0:01:09]} Nc4 {[%emt 0:07:23]} 16. Bd4 {[%emt 0:00:12]} e5 {[%emt 0:00:29]} 17. dxe6 {[%emt 0:00:41]} Bxe6 {[%emt 0:00:04]} 18. b3 {[%emt 0:05:06]} Na5 {[%emt 0:02:40]} 19. cxd6 {[%emt 0:07:41]} Qxd6 {[%emt 0:01:05]} 20. Na4 {[%emt 0:04:20]} Rad8 {[%emt 0:16:08]} 21. Qc2 {[%emt 0:01:24]} Rf7 {[%emt 0:04:22]} 22. Rfd1 {[%emt 0:01:12]} Bd5 {[%emt 0:05:34]} 23. Bc5 {[%emt 0:03:31]} Qc6 {[%emt 0:02:07]} 24. Ne5 {[%emt 0:03:52]} Ng4+ {[%emt 0:00:14]} 25. Nxg4 {[%emt 0:00:21]} fxg4 {[%emt 0:00:34]} 26. e4 {[%emt 0:00:31]} 1-0

[Event "11th Arad Open 2018"]
[Site "Arad"]
[Date "2018.08.09"]
[Round "6"]
[White "Baratosi, Daniel"]
[Black "Weinzettl, Ernst"]
[Result "1/2-1/2"]
[ECO "C16"]
[WhiteElo "2371"]
[BlackElo "2215"]
[Annotator "NA"]
[PlyCount "62"]
[EventDate "2018.08.05"]
[EventType "swiss"]
[EventCountry "ROU"]
[SourceTitle "playchess.com"]
[Source "ChessBase"]
[SourceQuality "1"]
[TimeControl "40/5400+30:1800+30"]

1. e4 {[%emt 0:03:49]} e6 {[%emt 0:00:00]} 2. d4 {[%emt 0:01:13]} d5 {[%emt 0:00:00]} 3. Nc3 {[%emt 0:01:34]} Bb4 {[%emt 0:00:45]} 4. e5 {[%emt 0:02:04]} Ne7 {[%emt 0:00:40]} 5. Qg4 {[%emt 0:04:35]} Nf5 {[%emt 0:01:07]} 6. Nf3 {[%emt 0:01:20]} c5 {[%emt 0:03:10]} 7. dxc5 {[%emt 0:01:13]} Bxc3+ {[%emt 0:09:35]} 8. bxc3 {[%emt 0:00:08]} h5 {[%emt 0:00:08]} 9. Qf4 {[%emt 0:00:41]} Qa5 {[%emt 0:00:28]} 10. Bd2 {[%emt 0:06:43]} Nd7 {[%emt 0:04:47]} 11. c4 {[%emt 0:07:36]} Qa4 {[%emt 0:04:48]} 12. cxd5 {[%emt 0:05:31]} Qxf4 {[%emt 0:00:24]} 13. Bxf4 {[%emt 0:00:05]} exd5 {[%emt 0:00:18]} 14. Rd1 {[%emt 0:06:17]} Nxc5 {[%emt 0:08:07]} 15. Rxd5 {[%emt 0:00:10]} b6 {[%emt 0:10:37]} 16. Bb5+ {[%emt 0:03:07]} Bd7 {[%emt 0:07:54]} 17. Bxd7+ {[%emt 0:16:02]} Nxd7 {[%emt 0:00:08]} 18. O-O {[%emt 0:00:13]} Nc5 {[%emt 0:01:28]} 19. h3 {[%emt 0:04:50]} Rc8 {[%emt 0:05:22]} 20. Bg5 {[%emt 0:08:52]} Ne6 {[%emt 0:09:28]} 21. Rfd1 {[%emt 0:01:09]} O-O {[%emt 0:00:55]} 22. g4 {[%emt 0:04:42]} hxg4 {[%emt 0:00:19]} 23. hxg4 {[%emt 0:00:02]} Nh6 {[%emt 0:00:22]} 24. Bxh6 {[%emt 0:00:48]} gxh6 {[%emt 0:00:04]} 25. R1d2 {[%emt 0:00:51]} Rc4 {[%emt 0:01:14]} 26. Nd4 {[%emt 0:01:43]} Re8 {[%emt 0:01:48]} 27. c3 {[%emt 0:06:28]} Nc7 {[%emt 0:05:44]} 28. Rd6 {[%emt 0:01:46]} Rxe5 {[%emt 0:00:16]} 29. Rxh6 {[%emt 0:00:40]} Nb5 {[%emt 0:11:31]} 30. Kg2 {[%emt 0:08:29]} Nxd4 {[%emt 0:02:49]} 31. cxd4 {[%emt 0:00:14]} Rd5 {[%emt 0:01:02]} 1/2-1/2

[Event "11th Arad Open 2018"]
[Site "Arad"]
[Date "2018.08.09"]
[Round "6"]
[White "Abramciuc, Marius"]
[Black "Calin, Alexandru"]
[Result "1-0"]
[ECO "C41"]
[WhiteElo "2357"]
[BlackElo "2215"]
[Annotator "NA"]
[PlyCount "43"]
[EventDate "2018.08.05"]
[EventType "swiss"]
[EventCountry "ROU"]
[SourceTitle "playchess.com"]
[Source "ChessBase"]
[SourceQuality "1"]
[TimeControl "40/5400+30:1800+30"]

1. e4 {[%emt 0:00:00]} e5 {[%emt 0:00:00]} 2. Nf3 {[%emt 0:00:00]} d6 {[%emt 0:00:00]} 3. d4 {[%emt 0:00:00]} exd4 {[%emt 0:00:00]} 4. Nxd4 {[%emt 0:00:00]} Nf6 {[%emt 0:00:00]} 5. Nc3 {[%emt 0:00:03]} Be7 {[%emt 0:00:00]} 6. Bc4 {[%emt 0:11:02]} O-O {[%emt 0:00:00]} 7. f3 {[%emt 0:00:32]} c6 {[%emt 0:01:04]} 8. a4 {[%emt 0:04:20]} d5 {[%emt 0:00:42]} 9. exd5 {[%emt 0:02:52]} cxd5 {[%emt 0:00:42]} 10. Bb3 {[%emt 0:00:34]} Bb4 {[%emt 0:03:06]} 11. O-O {[%emt 0:02:03]} Bxc3 {[%emt 0:01:06]} 12. bxc3 {[%emt 0:00:01]} Qc7 {[%emt 0:05:27]} 13. Qd3 {[%emt 0:23:05]} Nbd7 {[%emt 0:04:20]} 14. Bg5 {[%emt 0:08:18]} a5 {[%emt 0:16:26]} 15. Rfe1 {[%emt 0:07:10]} Qc5 {[%emt 0:01:36]} 16. Kh1 {[%emt 0:01:59]} b6 {[%emt 0:00:21]} 17. Nf5 {[%emt 0:08:10]} Ba6 {[%emt 0:01:43]} 18. Qd2 {[%emt 0:00:10]} Rfe8 {[%emt 0:02:30]} 19. Be3 {[%emt 0:06:53]} Qc6 {[%emt 0:03:03]} 20. Bd4 {[%emt 0:00:27]} Kh8 {[%emt 0:09:19]} 21. Qg5 {[%emt 0:00:32]} g6 {[%emt 0:00:07]} 22. Bxd5 {[%emt 0:01:05]} 1-0

[Event "11th Arad Open 2018"]
[Site "Arad"]
[Date "2018.08.09"]
[Round "6"]
[White "Tiba, Vladyslav"]
[Black "Zubcu, Vlad-George"]
[Result "1/2-1/2"]
[ECO "C88"]
[WhiteElo "2356"]
[BlackElo "2202"]
[Annotator "NA"]
[PlyCount "59"]
[EventDate "2018.08.05"]
[EventType "swiss"]
[EventCountry "ROU"]
[SourceTitle "playchess.com"]
[Source "ChessBase"]
[SourceQuality "1"]
[TimeControl "40/5400+30:1800+30"]

1. e4 {[%emt 0:00:00]} e5 {[%emt 0:00:00]} 2. Nf3 {[%emt 0:00:00]} Nc6 {[%emt 0:00:00]} 3. Bb5 {[%emt 0:00:19]} a6 {[%emt 0:00:00]} 4. Ba4 {[%emt 0:00:05]} Nf6 {[%emt 0:00:00]} 5. O-O {[%emt 0:00:08]} b5 {[%emt 0:00:03]} 6. Bb3 {[%emt 0:00:06]} Be7 {[%emt 0:00:01]} 7. Re1 {[%emt 0:00:12]} O-O {[%emt 0:00:05]} 8. d3 {[%emt 0:00:20]} d6 {[%emt 0:04:25]} 9. Bd2 {[%emt 0:04:38]} Bg4 {[%emt 0:01:12]} 10. c3 {[%emt 0:00:47]} Na5 {[%emt 0:06:32]} 11. Bc2 {[%emt 0:00:29]} d5 {[%emt 0:06:56]} 12. h3 {[%emt 0:02:41]} Bxf3 {[%emt 0:02:56]} 13. Qxf3 {[%emt 0:00:09]} dxe4 {[%emt 0:00:03]} 14. dxe4 {[%emt 0:00:34]} Nc4 {[%emt 0:01:25]} 15. Bc1 {[%emt 0:02:17]} c5 {[%emt 0:09:38]} 16. Bd3 {[%emt 0:17:45]} Nb6 {[%emt 0:03:23]} 17. Nd2 {[%emt 0:00:58]} c4 {[%emt 0:03:04]} 18. Bc2 {[%emt 0:00:21]} Ne8 {[%emt 0:01:28]} 19. Rd1 {[%emt 0:04:20]} Qc7 {[%emt 0:02:39]} 20. Nf1 {[%emt 0:00:18]} g6 {[%emt 0:00:46]} 21. a4 {[%emt 0:08:45]} Ng7 {[%emt 0:04:34]} 22. Bh6 {[%emt 0:10:07]} Rfd8 {[%emt 0:02:23]} 23. Rxd8+ {[%emt 0:01:22]} Rxd8 {[%emt 0:00:56]} 24. a5 {[%emt 0:00:07]} Nd7 {[%emt 0:00:50]} 25. Ne3 {[%emt 0:02:15]} Nf6 {[%emt 0:01:28]} 26. Bg5 {[%emt 0:06:12]} Nge8 {[%emt 0:01:34]} 27. h4 {[%emt 0:03:28]} Kg7 {[%emt 0:01:44]} 28. g3 {[%emt 0:00:57]} h6 {[%emt 0:01:55]} 29. Bxf6+ {[%emt 0:00:31]} Nxf6 {[%emt 0:00:04]} 30. Qe2 {[%emt 0:11:24]} 1/2-1/2

[Event "11th Arad Open 2018"]
[Site "Arad"]
[Date "2018.08.09"]
[Round "6"]
[White "Balla, Tamas-Kristof"]
[Black "Scripcaru, George-Daniel"]
[Result "1-0"]
[ECO "A11"]
[WhiteElo "2352"]
[BlackElo "2177"]
[Annotator "NA"]
[PlyCount "93"]
[EventDate "2018.08.05"]
[EventType "swiss"]
[EventCountry "ROU"]
[SourceTitle "playchess.com"]
[Source "ChessBase"]
[SourceQuality "1"]
[TimeControl "40/5400+30:1800+30"]

1. c4 {[%emt 0:04:07]} c6 {[%emt 0:00:07]} 2. Nf3 {[%emt 0:00:27]} d5 {[%emt 0:00:08]} 3. g3 {[%emt 0:00:06]} Nf6 {[%emt 0:01:34]} 4. Bg2 {[%emt 0:00:14]} Nbd7 {[%emt 0:02:52]} 5. O-O {[%emt 0:01:10]} e5 {[%emt 0:02:27]} 6. cxd5 {[%emt 0:11:56]} cxd5 {[%emt 0:00:22]} 7. d4 {[%emt 0:00:11]} e4 {[%emt 0:00:35]} 8. Ne1 {[%emt 0:00:10]} Bd6 {[%emt 0:02:38]} 9. Nc3 {[%emt 0:00:41]} O-O {[%emt 0:02:57]} 10. Bd2 {[%emt 0:03:28]} Nb6 {[%emt 0:01:03]} 11. Nb5 {[%emt 0:04:43]} Bb8 {[%emt 0:07:21]} 12. Bb4 {[%emt 0:01:46]} Re8 {[%emt 0:00:34]} 13. Rc1 {[%emt 0:03:02]} Bd7 {[%emt 0:04:23]} 14. Nc3 {[%emt 0:02:33]} Bc7 {[%emt 0:02:33]} 15. b3 {[%emt 0:01:53]} Rc8 {[%emt 0:01:49]} 16. a4 {[%emt 0:05:45]} h5 {[%emt 0:12:06]} 17. Nc2 {[%emt 0:01:36]} a6 {[%emt 0:12:27]} 18. Ne3 {[%emt 0:03:18]} Be6 {[%emt 0:00:10]} 19. Qd2 {[%emt 0:00:17]} h4 {[%emt 0:02:31]} 20. Rc2 {[%emt 0:07:16]} Nbd7 {[%emt 0:08:18]} 21. Rfc1 {[%emt 0:01:23]} Nf8 {[%emt 0:00:46]} 22. a5 {[%emt 0:06:13]} Bb8 {[%emt 0:05:54]} 23. Na4 {[%emt 0:03:38]} Rxc2 {[%emt 0:00:07]} 24. Rxc2 {[%emt 0:00:32]} N8h7 {[%emt 0:05:47]} 25. Ba3 {[%emt 0:08:39]} Nd7 {[%emt 0:04:12]} 26. Qb4 {[%emt 0:01:47]} Qg5 {[%emt 0:00:15]} 27. Bc1 {[%emt 0:00:52]} hxg3 {[%emt 0:04:00]} 28. hxg3 {[%emt 0:00:26]} Qh5 {[%emt 0:00:40]} 29. Qxb7 {[%emt 0:01:23]} Ndf6 {[%emt 0:07:27]} 30. Nc5 {[%emt 0:03:42]} Bh3 {[%emt 0:02:22]} 31. Bh1 {[%emt 0:04:44]} Ng5 {[%emt 0:02:30]} 32. Nxa6 {[%emt 0:03:35]} Bd6 {[%emt 0:02:26]} 33. Nc7 {[%emt 0:00:43]} Bc8 {[%emt 0:01:02]} 34. Qc6 {[%emt 0:09:50]} Nh3+ {[%emt 0:00:11]} 35. Kf1 {[%emt 0:00:10]} Bxc7 {[%emt 0:00:24]} 36. Qxc7 {[%emt 0:00:32]} Nxf2 {[%emt 0:00:14]} 37. Bg2 {[%emt 0:01:53]} N2g4 {[%emt 0:02:37]} 38. Qf4 {[%emt 0:02:26]} Ba6 {[%emt 0:00:29]} 39. Nxg4 {[%emt 0:00:42]} Nxg4 {[%emt 0:00:13]} 40. Qg5 {[%emt 0:00:00]} Qxg5 {[%emt 0:00:00]} 41. Bxg5 {[%emt 0:15:21]} Rb8 {[%emt 0:16:19]} 42. Bh3 {[%emt 0:02:09]} f5 {[%emt 0:00:57]} 43. Rc6 {[%emt 0:01:30]} Bb5 {[%emt 0:00:37]} 44. Rd6 {[%emt 0:04:34]} Ra8 {[%emt 0:01:13]} 45. Bxg4 {[%emt 0:04:12]} fxg4 {[%emt 0:00:06]} 46. Rxd5 {[%emt 0:01:20]} Rxa5 {[%emt 0:00:55]} 47. Kf2 {[%emt 0:00:22]} 1-0

[Event "11th Arad Open 2018"]
[Site "Arad"]
[Date "2018.08.09"]
[Round "6"]
[White "Ileana, George"]
[Black "Visanescu, Daria-Ioana"]
[Result "1/2-1/2"]
[ECO "B41"]
[WhiteElo "2324"]
[BlackElo "2075"]
[Annotator "NA"]
[PlyCount "91"]
[EventDate "2018.08.05"]
[EventType "swiss"]
[EventCountry "ROU"]
[SourceTitle "playchess.com"]
[Source "ChessBase"]
[SourceQuality "1"]
[TimeControl "40/5400+30:1800+30"]

1. e4 {[%emt 0:00:00]} c5 {[%emt 0:00:00]} 2. Nf3 {[%emt 0:00:00]} e6 {[%emt 0:00:00]} 3. d4 {[%emt 0:00:00]} cxd4 {[%emt 0:00:00]} 4. Nxd4 {[%emt 0:00:00]} a6 {[%emt 0:00:00]} 5. c4 {[%emt 0:00:06]} Nf6 {[%emt 0:00:20]} 6. Nc3 {[%emt 0:00:04]} Bb4 {[%emt 0:00:22]} 7. Qd3 {[%emt 0:00:07]} d5 {[%emt 0:00:54]} 8. exd5 {[%emt 0:15:46]} exd5 {[%emt 0:00:05]} 9. Be2 {[%emt 0:00:10]} O-O {[%emt 0:17:16]} 10. O-O {[%emt 0:00:15]} Bxc3 {[%emt 0:17:43]} 11. Qxc3 {[%emt 0:02:45]} Ne4 {[%emt 0:13:26]} 12. Qc2 {[%emt 0:01:52]} Re8 {[%emt 0:02:29]} 13. Be3 {[%emt 0:00:41]} Nc6 {[%emt 0:01:04]} 14. Rad1 {[%emt 0:02:24]} Qd6 {[%emt 0:15:27]} 15. Nxc6 {[%emt 0:03:24]} bxc6 {[%emt 0:00:11]} 16. Bf3 {[%emt 0:03:26]} Bf5 {[%emt 0:00:49]} 17. Qa4 {[%emt 0:00:36]} Nf6 {[%emt 0:03:48]} 18. cxd5 {[%emt 0:08:47]} cxd5 {[%emt 0:00:06]} 19. Rd4 {[%emt 0:00:37]} Be4 {[%emt 0:03:07]} 20. Bxe4 {[%emt 0:01:50]} Rxe4 {[%emt 0:00:57]} 21. h3 {[%emt 0:01:11]} h6 {[%emt 0:00:54]} 22. Rfd1 {[%emt 0:04:19]} Qe6 {[%emt 0:02:00]} 23. Qb3 {[%emt 0:03:03]} Qf5 {[%emt 0:04:15]} 24. Rxe4 {[%emt 0:01:48]} Qxe4 {[%emt 0:02:01]} 25. Qd3 {[%emt 0:01:15]} Qe6 {[%emt 0:01:27]} 26. b4 {[%emt 0:00:49]} Rd8 {[%emt 0:04:11]} 27. Qd4 {[%emt 0:00:34]} Rc8 {[%emt 0:00:23]} 28. a4 {[%emt 0:01:37]} Rc4 {[%emt 0:00:10]} 29. Qb2 {[%emt 0:00:09]} Qd6 {[%emt 0:03:10]} 30. Rd4 {[%emt 0:01:02]} Qc7 {[%emt 0:03:17]} 31. b5 {[%emt 0:01:28]} Rc2 {[%emt 0:00:10]} 32. Qb1 {[%emt 0:01:54]} axb5 {[%emt 0:00:51]} 33. axb5 {[%emt 0:01:22]} Qc3 {[%emt 0:00:04]} 34. Rb4 {[%emt 0:00:53]} Ne4 {[%emt 0:01:33]} 35. b6 {[%emt 0:00:54]} Nd2 {[%emt 0:03:05]} 36. Bxd2 {[%emt 0:05:03]} Qxd2 {[%emt 0:00:07]} 37. Kh2 {[%emt 0:00:04]} Qxf2 {[%emt 0:01:22]} 38. Qg1 {[%emt 0:00:29]} Qxg1+ {[%emt 0:00:49]} 39. Kxg1 {[%emt 0:00:06]} Rc8 {[%emt 0:00:05]} 40. b7 {[%emt 0:00:00]} Rb8 {[%emt 0:00:00]} 41. Kf2 {[%emt 0:18:06]} Kf8 {[%emt 0:15:10]} 42. Ke3 {[%emt 0:00:08]} Ke7 {[%emt 0:00:06]} 43. Kd4 {[%emt 0:00:25]} Kd6 {[%emt 0:00:13]} 44. Rb2 {[%emt 0:00:24]} Kc6 {[%emt 0:01:12]} 45. Rc2+ {[%emt 0:00:50]} Kd6 {[%emt 0:00:49]} 46. Rb2 1/2-1/2